bitfinex/quotes_ETHUSD_20240701
["timestamp","ask_amount","ask_price","bid_price","bid_amount"]
[1719832482967,2.3286,3471.5,3470.9,0.87161459]
[1719832483284,2.3286,3471.5,3470.9,3.75268459]
[1719832483440,2.92692922,3471.4,3470.8,0.814]
[1719832483640,2.92692922,3471.4,3470.8,3.69517]
[1719832483964,0.04624922,3471.4,3470.9,2.88109]
[1719832485277,0.04624922,3471.4,3471.0,2.881]
[1719832488337,0.04624922,3471.4,3471.1,2.88091]
[1719832488658,0.04624922,3471.4,3470.9,2.93865426]
[1719832489189,0.04624922,3471.4,3471.0,2.88099]
[1719832490912,0.04624922,3471.4,3471.1,2.88085]
[1719832491273,0.04624922,3471.4,3471.0,2.88099]
[1719832492059,0.04624922,3471.4,3471.1,2.88091]
[1719832493205,0.04624922,3471.4,3471.2,2.88083]
[1719832493496,0.04624922,3471.4,3471.3,2.88076]
[1719832493682,2.2935,3471.7,3471.3,2.88076]
[1719832493995,0.04296387,3471.4,3471.3,2.88076]
[1719832494196,2.2935,3471.7,3471.4,2.88066]
[1719832494900,0.04306565,3471.6,3471.4,2.88066]
[1719832496168,0.87784537,3471.6,3470.3,2.55857703]
[1719832496497,2.3643,3471.5,3470.9,2.88104]
[1719832496694,3.1783,3471.5,3470.9,2.88104]
[1719832496994,2.3451,3471.3,3470.9,2.88104]
[1719832497496,2.3451,3471.3,3471.0,2.881]
[1719832497497,0.0428825,3471.2,3471.0,2.881]
[1719832497672,2.3451,3471.3,3471.0,2.881]
[1719832497853,0.0428316,3471.1,3471.0,2.881]
[1719832498057,2.3451,3471.3,3471.0,2.881]
[1719832498265,0.0428316,3471.1,3471.0,2.881]
[1719832498478,2.3451,3471.3,3471.0,2.881]
[1719832498824,0.0428316,3471.1,3471.0,2.881]
[1719832498969,2.3451,3471.3,3471.0,2.881]
[1719832499493,0.04286933,3471.2,3471.0,2.881]
[1719832499824,2.3451,3471.3,3471.0,2.881]
[1719832499968,0.04281843,3471.1,3471.0,2.881]
[1719832500168,2.3451,3471.3,3470.7,2.88124]
[1719832500369,2.3944,3471.0,3470.3,2.88156]
[1719832500618,0.814,3470.9,3470.4,6.86605963]
[1719832500780,0.85651888,3470.9,3470.5,2.88142]
[1719832502318,0.04251888,3470.9,3470.5,2.88142]
[1719832504995,0.04251888,3470.9,3470.4,0.814]
[1719832505174,0.04251888,3470.9,3470.7,2.88119]
[1719832508576,0.04251888,3470.9,3470.8,2.88118]
[1719832508898,2.2763,3471.3,3471.0,2.88098]
[1719832509096,0.04238141,3471.2,3471.1,5.76186]
[1719832509403,2.88001,3472.3,3471.5,2.88051]
[1719832509404,2.2763,3472.1,3471.5,2.88051]
[1719832510504,2.2763,3472.1,3471.6,2.88051]
[1719832511573,2.2763,3472.1,3471.7,2.88042]
[1719832511770,0.041509,3472.0,3471.7,2.88042]
[1719832513182,0.041509,3472.0,3471.9,2.88026]
[1719832513616,2.3783,3472.3,3471.9,2.88026]
[1719832513819,0.04145656,3472.0,3471.9,2.88026]
[1719832514317,2.3783,3472.3,3471.9,2.88026]
[1719832514516,0.04145656,3472.0,3471.9,2.88026]
[1719832514812,2.3783,3472.3,3471.9,2.88026]
[1719832515324,0.04162188,3472.2,3471.9,2.88026]
[1719832515611,2.3783,3472.3,3471.9,2.88026]
[1719832515818,0.04157101,3472.1,3471.9,2.88026]
[1719832516019,2.3783,3472.3,3471.9,2.88026]
[1719832516634,0.04162188,3472.2,3471.9,2.88026]
[1719832517056,2.3783,3472.3,3471.9,2.88026]
[1719832517190,0.04157101,3472.1,3471.9,2.88026]
[1719832517591,2.3783,3472.3,3471.9,2.88026]
[1719832517821,0.04152013,3472.0,3471.9,2.88026]
[1719832518425,2.3783,3472.3,3471.9,2.88026]
[1719832518611,0.04152013,3472.0,3471.9,2.88026]
[1719832518811,2.3783,3472.3,3471.9,2.88026]
[1719832519012,0.04152013,3472.0,3471.7,2.88037]
[1719832519216,2.39907972,3472.3,3471.7,2.88037]
[1719832519405,0.04146925,3471.9,3471.7,2.88037]
[1719832519608,2.39907972,3472.3,3471.7,2.88037]
[1719832520110,0.04162188,3472.2,3471.7,2.88037]
[1719832522409,0.04162188,3472.2,3471.8,2.88034]
[1719832522808,2.3783,3472.3,3471.8,2.88034]
[1719832523118,0.04162188,3472.2,3471.8,2.88034]
[1719832523319,2.3783,3472.3,3471.8,2.88034]
[1719832523519,0.04155334,3472.1,3471.8,2.88034]
[1719832523714,2.3783,3472.3,3471.8,2.88034]
[1719832523943,0.04150247,3472.0,3471.8,2.88034]
[1719832524240,2.3783,3472.3,3471.8,3.456422]
[1719832524435,0.04145159,3471.9,3471.8,2.88034]
[1719832524637,2.3783,3472.3,3471.8,2.88034]
[1719832524839,0.04146925,3471.9,3471.8,2.88034]
[1719832525054,2.3783,3472.3,3471.8,2.88034]
[1719832525342,2.3783,3472.3,3471.6,2.88048]
[1719832525555,0.04162188,3472.2,3471.7,2.88042]
[1719832525913,0.04162188,3472.2,3471.8,2.88032]
[1719832526112,2.3783,3472.3,3471.8,2.88032]
[1719832526444,0.04157101,3472.1,3471.8,2.88032]
[1719832526639,0.04162188,3472.2,3471.8,2.88032]
[1719832526960,2.3783,3472.3,3471.8,2.88032]
[1719832527160,0.04157101,3472.1,3471.8,2.88032]
[1719832527311,0.04162188,3472.2,3471.8,2.88032]
[1719832527511,0.04152013,3472.0,3471.8,2.88032]
[1719832527743,2.3783,3472.3,3471.8,2.88032]
[1719832527948,0.04146925,3471.9,3471.8,2.88032]
[1719832528146,2.3783,3472.3,3471.8,2.88032]
[1719832528355,0.04146925,3471.9,3471.6,2.88045]
[1719832528670,5.27902972,3472.3,3471.7,3.53792]
[1719832528870,0.04141837,3471.8,3471.7,2.88041]
[1719832529278,5.25825,3472.3,3471.7,2.88041]
[1719832529423,0.04141837,3471.8,3471.7,2.88041]
[1719832529774,2.3783,3472.3,3471.8,2.88032]
[1719832530129,2.3783,3472.3,3471.9,2.88026]
[1719832530474,2.3783,3472.3,3471.9,2.88023]
[1719832530824,2.8793,3473.1,3472.1,2.88003]
[1719832531030,5.91656,3474.0,3471.9,0.576055]
[1719832531031,2.3604,3473.0,3472.5,2.87974]
[1719832532127,2.3604,3473.0,3472.3,0.814]
[1719832532128,5.23975,3473.0,3472.3,2.87993]
[1719832532330,5.26052972,3473.0,3472.3,3.53733]
[1719832532524,5.26052972,3473.0,3472.1,2.88007]
[1719832532525,2.3666,3472.7,3472.1,2.88007]
[1719832532729,2.3666,3472.7,3471.9,7.44084463]
[1719832532730,2.87968,3472.6,3471.9,7.44084463]
[1719832533029,0.02077972,3472.6,3472.1,2.88008]
[1719832537834,2.90050972,3472.6,3471.9,6.86474963]
[1719832538454,2.4137,3472.5,3471.9,6.86474963]
[1719832539236,2.4137,3472.5,3472.0,2.88015]
[1719832540083,0.03871607,3472.4,3472.0,2.88015]
[1719832540232,0.03871607,3472.4,3472.1,3.93599196]
[1719832540740,0.03871607,3472.4,3472.2,2.87996]
[1719832544362,0.03871607,3472.4,3472.3,2.87993]
[1719832544547,0.02077972,3472.9,3472.3,2.87993]
[1719832544746,0.02077972,3472.9,3472.4,2.87981]
[1719832545347,0.83477972,3472.9,3472.4,2.87981]
[1719832546780,3.71421972,3472.9,3472.2,2.87995]
[1719832546946,3.71421972,3472.9,3472.3,2.8799]
[1719832548494,2.3653,3472.8,3472.3,2.8799]
[1719832548662,2.38607972,3472.8,3472.3,2.8799]
[1719832550368,2.38607972,3472.8,3472.4,2.8798]
[1719832550566,2.3653,3472.8,3472.4,2.8798]
[1719832551488,2.4136,3473.8,3473.2,2.87911]
[1719832551831,2.4136,3473.8,3473.3,0.814]
[1719832552006,2.4136,3473.8,3473.3,2.87909]
[1719832552315,0.02077972,3473.7,3473.1,2.93679942]
[1719832552514,0.02077972,3473.7,3473.1,2.87922]
[1719832552679,0.02077972,3473.7,3473.2,2.87916]
[1719832553828,0.02077972,3473.7,3473.1,2.87922]
[1719832553829,0.02077972,3473.7,3473.3,2.87908]
[1719832554125,0.02077972,3473.7,3472.6,6.86417963]
[1719832554126,2.2591,3473.3,3472.8,2.87948]
[1719832554423,2.2591,3473.3,3473.0,2.87928]
[1719832554773,2.2591,3473.3,3473.1,2.87927]
[1719832554993,0.03650598,3473.2,3473.1,2.87927]
[1719832556502,2.2591,3473.3,3473.1,2.87927]
[1719832556684,0.03650598,3473.2,3473.1,2.87927]
[1719832556885,2.2591,3473.3,3473.1,2.87927]
[1719832557291,0.02077972,3473.5,3473.1,2.87927]
[1719832557495,2.3592,3473.6,3473.4,2.87896]
[1719832558206,2.3592,3473.6,3473.1,0.57587]
[1719832558207,2.3592,3473.6,3473.5,2.87894]
[1719832561388,2.4036,3474.0,3473.6,2.8788]
[1719832561597,2.4036,3474.0,3473.4,2.87901]
[1719832561780,0.02077972,3473.9,3473.4,2.87901]
[1719832562919,2.2652,3473.8,3473.4,2.87901]
[1719832563283,0.02077972,3473.7,3473.2,2.87916]
[1719832563499,2.4184,3473.6,3473.0,2.87933]
[1719832563701,2.4818,3473.4,3473.0,2.87933]
[1719832563904,2.50257972,3473.4,3473.0,2.87933]
[1719832564111,2.50257972,3473.4,3472.8,2.8795]
[1719832564522,0.814,3473.3,3472.8,2.8795]
[1719832564712,2.50257972,3473.4,3472.9,2.87941]
[1719832567156,2.50257972,3473.4,3473.0,2.87933]
[1719832568535,2.4818,3473.4,3473.2,2.87911]
[1719832568732,2.4818,3473.4,3473.3,2.8791]
[1719832570102,0.03560159,3473.4,3473.3,2.8791]
[1719832571236,0.03560159,3473.4,3473.1,2.87921]
[1719832571901,0.03560159,3473.4,3473.2,2.87917]
[1719832577711,0.03560159,3473.4,3473.2,2.87917]
[1719832578302,0.03560159,3473.4,3473.3,2.8791]
[1719832578638,0.02077972,3473.7,3473.3,2.8791]
[1719832578839,0.03410448,3473.4,3473.3,2.8791]
[1719832579042,0.02077972,3473.7,3473.3,2.8791]
[1719832579242,0.03410714,3473.4,3473.3,2.8791]
[1719832579411,0.02077972,3473.7,3473.3,2.8791]
[1719832579607,0.03420881,3473.6,3473.3,2.8791]
[1719832581150,0.03420881,3473.6,3473.4,2.87901]
[1719832581440,2.3701,3473.8,3473.4,2.87901]
[1719832581629,0.03404552,3473.5,3473.2,2.87913]
[1719832581837,0.02077972,3473.7,3473.2,2.87913]
[1719832582021,0.03400001,3473.4,3473.2,2.87913]
[1719832582216,0.02077972,3473.7,3473.3,2.8791]
[1719832582510,0.03410236,3473.6,3473.3,2.8791]
[1719832588969,5.26021,3473.5,3472.9,2.87941]
[1719832589116,2.3812,3473.2,3472.8,3.98454963]
[1719832589416,0.0332769,3473.1,3472.8,3.98454963]
[1719832589617,0.02077972,3473.0,3472.4,0.6815772]
[1719832589807,2.4143752,3472.9,3472.4,2.87984]
[1719832590009,0.02077972,3472.8,3472.3,3.98454963]
[1719832590249,2.87969,3472.6,3472.3,3.98454963]
[1719832590543,0.05383383,3472.7,3472.3,3.98454963]
[1719832590730,0.02077972,3472.7,3472.3,3.98454963]
[1719832590946,0.03314307,3472.6,3472.3,3.98454963]
[1719832592866,2.87985,3472.4,3472.3,3.98454963]
[1719832593027,2.87985,3472.4,3471.8,2.88034]
[1719832593236,2.91294634,3472.4,3471.8,4.18183996]
[1719832593939,5.31434634,3472.4,3471.8,2.88034]
[1719832594124,5.31434634,3472.4,3471.8,3.69434]
[1719832594330,2.43449634,3472.4,3471.9,2.88026]
[1719832595050,2.43449634,3472.4,3472.0,2.88017]
[1719832595255,2.43449634,3472.4,3472.0,3.69417]
[1719832595949,2.4014,3472.4,3472.0,4.75008196]
[1719832597457,0.03277795,3472.3,3472.0,4.75008196]
[1719832598149,0.03277795,3472.3,3472.0,1.86991196]
[1719832598361,0.03277795,3472.3,3472.0,1.05591196]
[1719832602452,0.03277795,3472.3,3471.7,7.67894963]
[1719832602822,5.30203972,3472.4,3471.7,7.67894963]
[1719832603022,0.03269156,3472.3,3471.7,7.67894963]
[1719832603224,5.30203972,3472.4,3471.8,2.88033]
[1719832603436,0.03269156,3472.3,3471.8,2.88033]
[1719832604163,0.03269156,3472.3,3471.7,3.6944]
[1719832604370,2.88032,3471.9,3471.3,6.86529963]
[1719832604665,2.88032,3471.9,3471.1,2.88088]
[1719832604666,2.88043,3471.7,3471.1,2.88088]
[1719832604876,0.05326643,3471.8,3471.2,2.88084]
[1719832605030,0.03232871,3471.6,3471.2,3.69484]
[1719832605228,0.02077972,3471.8,3471.3,1.874572]
[1719832605469,0.03247977,3471.7,3471.3,1.874572]
[1719832605967,0.03240989,3471.6,3471.3,4.755302]
[1719832606168,0.02077972,3471.8,3471.3,4.755302]
[1719832606368,0.03246078,3471.7,3471.4,0.8450182]
[1719832606666,0.02077972,3471.8,3471.4,0.8450182]
[1719832607288,0.03242935,3471.7,3471.4,0.8450182]
[1719832607675,0.02077972,3471.8,3471.4,0.8450182]
[1719832607882,0.03235945,3471.6,3471.4,0.8450182]
[1719832608078,0.02077972,3471.8,3471.4,0.8450182]
[1719832608287,0.03232757,3471.5,3471.4,0.8450182]
[1719832608575,0.03232757,3471.5,3471.4,1.71662878]
[1719832608780,2.3017,3472.0,3471.5,2.88053]
[1719832608977,0.03250616,3471.9,3471.5,2.88053]
[1719832610557,0.03250616,3471.9,3471.6,0.814]
[1719832610766,2.3225,3472.3,3471.8,2.88035]
[1719832610974,0.0326367,3472.2,3471.8,2.88035]
[1719832611270,2.3225,3472.3,3471.8,2.88035]
[1719832611456,0.03258717,3472.1,3471.8,2.88035]
[1719832611771,0.03253629,3472.0,3471.9,2.88026]
[1719832611948,2.3225,3472.3,3471.9,2.88026]
[1719832612144,0.03266615,3472.2,3471.9,2.88026]
[1719832612348,2.3225,3472.3,3471.9,2.88026]
[1719832612669,0.03266615,3472.2,3471.9,2.88026]
[1719832613167,2.3834,3472.6,3472.1,2.88009]
[1719832613372,2.3834,3472.6,3472.0,0.814]
[1719832613373,2.3834,3472.6,3472.2,2.87996]
[1719832614938,0.03261396,3472.5,3472.2,2.87996]
[1719832615552,0.03261396,3472.5,3472.3,2.87993]
[1719832616574,2.4734,3472.8,3472.3,2.87993]
[1719832616881,0.03292685,3472.7,3472.3,2.87993]
[1719832617178,2.4734,3472.8,3472.3,2.87993]
[1719832617374,0.03292685,3472.7,3472.3,2.87993]
[1719832617540,2.4734,3472.8,3472.3,2.87993]
[1719832617740,0.03292685,3472.7,3472.3,2.87993]
[1719832617941,2.4734,3472.8,3472.3,2.87993]
[1719832618160,0.05370657,3472.7,3472.3,2.87993]
[1719832619354,0.03292685,3472.7,3472.3,2.87993]
[1719832619674,3.41293569,3472.8,3472.3,2.87993]
[1719832619974,0.03288815,3472.7,3472.3,2.87993]
[1719832620175,3.41293569,3472.8,3472.3,2.87993]
[1719832620351,0.03289154,3472.7,3472.3,2.87993]
[1719832620552,2.49417972,3472.8,3472.3,2.87993]
[1719832620754,0.03289154,3472.7,3472.3,2.87993]
[1719832620954,2.49417972,3472.8,3472.3,2.87993]
[1719832621353,0.03289154,3472.7,3472.3,2.87993]
[1719832621552,2.49417972,3472.8,3472.3,2.87993]
[1719832621752,0.03289154,3472.7,3472.3,2.87993]
[1719832621980,2.49417972,3472.8,3472.3,2.87993]
[1719832622163,0.03289154,3472.7,3472.3,2.87993]
[1719832622353,2.49417972,3472.8,3472.3,2.87993]
[1719832622761,2.4734,3472.8,3472.3,0.657402]
[1719832622983,0.03289154,3472.7,3472.4,0.814]
[1719832623153,2.4654,3473.1,3472.6,2.87962]
[1719832623360,0.03295645,3473.0,3472.6,2.87962]
[1719832623681,0.03295645,3473.0,3472.7,2.8796]
[1719832624057,0.03295645,3473.0,3472.8,2.8795]
[1719832624256,0.03295645,3473.0,3472.9,2.87943]
[1719832626585,0.03295645,3473.0,3472.7,2.8796]
[1719832627049,0.05373617,3473.0,3472.4,2.87984]
[1719832627245,2.393,3472.9,3472.2,3.98454963]
[1719832627574,0.02077972,3472.8,3472.2,3.98454963]
[1719832628163,0.0328427,3472.7,3472.2,6.86450963]
[1719832628370,0.05362242,3472.7,3472.2,6.86450963]
[1719832628770,0.05362242,3472.7,3472.2,3.98454963]
[1719832628771,2.93323242,3472.7,3472.2,3.98454963]
[1719832628972,2.3434,3472.6,3472.2,3.98454963]
[1719832629149,0.05364714,3472.5,3472.2,3.98454963]
[1719832629983,0.05364714,3472.5,3472.1,2.88001]
[1719832630302,0.05364714,3472.5,3472.1,3.537436]
[1719832634551,0.05364714,3472.5,3471.7,6.86495963]
[1719832634888,2.4178,3472.4,3471.7,3.98454963]
[1719832635048,0.02077972,3472.3,3471.7,3.98454963]
[1719832635251,2.88008,3472.2,3471.6,2.88044]
[1719832635510,0.03270148,3472.1,3471.6,2.88044]
[1719832635852,2.87995,3472.3,3471.6,2.88044]
[1719832636048,0.03275235,3472.2,3471.6,2.88044]
[1719832636760,0.05353207,3472.2,3471.6,2.88044]
[1719832637377,0.05353207,3472.2,3471.7,2.88043]
[1719832638952,2.4006,3472.1,3471.7,2.88043]
[1719832639154,0.0326873,3472.0,3471.5,6.57512]
[1719832639353,2.4006,3472.1,3471.6,2.88049]
[1719832640597,2.4006,3472.1,3471.7,2.88041]
[1719832640888,0.0326873,3472.0,3471.7,2.88041]
[1719832645018,0.05346702,3472.0,3471.3,6.86527963]
[1719832645166,2.90100972,3472.0,3471.3,6.86527963]
[1719832645494,2.4315,3471.8,3471.4,2.88067]
[1719832645988,0.03248614,3471.7,3471.4,2.88067]
[1719832646165,2.4315,3471.8,3471.4,2.88067]
[1719832646366,0.03242911,3471.7,3471.4,2.88067]
[1719832646599,2.4315,3471.8,3471.4,2.88067]
[1719832646799,0.03245391,3471.7,3471.4,2.88067]
[1719832646977,2.4315,3471.8,3471.4,2.88067]
[1719832647179,0.03245391,3471.7,3471.4,2.88067]
[1719832647499,2.4315,3471.8,3471.4,2.88067]
[1719832647797,0.03240303,3471.6,3471.4,2.88067]
[1719832647994,2.4315,3471.8,3471.5,2.88059]
[1719832648195,2.4315,3471.8,3471.4,0.814]
[1719832648502,0.03226496,3471.7,3471.6,3.69446]
[1719832648907,0.02077972,3472.2,3471.6,3.69446]
[1719832649277,0.03263823,3472.1,3471.6,3.69446]
[1719832652326,2.3419,3472.0,3471.4,2.88067]
[1719832652610,0.03253648,3471.9,3471.4,2.88067]
[1719832652810,0.03253648,3471.9,3471.4,3.62367614]
[1719832653020,0.03253648,3471.9,3471.5,2.88059]
[1719832655097,0.03253648,3471.9,3471.3,3.98454963]
[1719832655098,5.29592,3471.6,3471.3,3.98454963]
[1719832655304,2.4154,3471.6,3471.3,3.98454963]
[1719832655505,0.03233295,3471.5,3471.3,3.98454963]
[1719832657013,0.03233295,3471.5,3471.2,2.88084]
[1719832657215,0.03233295,3471.5,3471.2,3.69484]
[1719832658601,0.03233295,3471.5,3471.2,4.352425]
[1719832659008,0.02077972,3471.8,3471.2,4.352425]
[1719832659318,0.03248565,3471.7,3471.2,4.352425]
[1719832659478,0.03248565,3471.7,3471.3,2.88076]
[1719832659685,0.02077972,3471.8,3471.3,2.88076]
[1719832659885,0.03243477,3471.6,3471.3,2.88076]
[1719832660081,0.03248565,3471.7,3471.3,2.88076]
[1719832660399,0.03243477,3471.6,3471.3,2.88076]
[1719832660601,0.02077972,3471.7,3471.3,2.88076]
[1719832660799,0.03243477,3471.6,3471.3,2.88076]
[1719832662025,0.03243477,3471.6,3471.4,3.69464]
[1719832662184,2.4211,3471.9,3471.4,3.69464]
[1719832662386,0.0325372,3471.8,3471.4,3.69464]
[1719832665806,0.0325372,3471.8,3471.4,2.88064]
[1719832668435,0.05331692,3471.8,3471.4,2.88064]
[1719832669342,0.0325372,3471.8,3471.4,2.88064]
[1719832673647,0.05331692,3471.8,3471.4,2.88064]
[1719832677645,0.05331692,3471.8,3471.2,2.88084]
[1719832678335,2.3066,3471.7,3471.2,2.88084]
[1719832678731,0.03247679,3471.6,3471.2,2.88084]
[1719832680257,0.05325651,3471.6,3471.0,2.88097]
[1719832680459,0.02077972,3471.6,3471.0,2.88097]
[1719832681214,2.4855,3471.5,3470.7,3.98454963]
[1719832681473,2.88006,3472.2,3470.7,3.98454963]
[1719832681474,2.3932,3471.0,3470.7,3.98454963]
[1719832681637,0.02077972,3470.9,3470.4,2.88145]
[1719832681843,0.03201879,3470.8,3470.4,2.88145]
[1719832682060,2.41397972,3471.0,3470.4,3.93761496]
[1719832682408,0.0320697,3470.9,3470.4,3.93761496]
[1719832683441,2.3932,3470.8,3470.2,6.86619963]
[1719832683642,0.0319478,3470.7,3470.2,6.86619963]
[1719832683877,2.3932,3470.8,3470.2,6.86619963]
[1719832684058,0.03193064,3470.7,3470.2,6.86619963]
[1719832684387,2.3932,3470.8,3470.3,3.69559]
[1719832684921,0.03193064,3470.7,3470.3,3.69559]
[1719832685656,0.03193064,3470.7,3470.3,0.814]
[1719832685888,2.2963,3471.0,3470.6,2.88128]
[1719832686087,0.03199562,3470.9,3470.7,0.814]
[1719832686842,0.03199562,3470.9,3470.7,3.6952]
[1719832687202,2.2963,3471.0,3470.7,3.6952]
[1719832687545,0.03203242,3470.9,3470.7,3.6952]
[1719832687746,0.03203242,3470.9,3470.7,4.352862]
[1719832687946,2.2963,3471.0,3470.7,1.471662]
[1719832688262,0.03203242,3470.9,3470.7,1.471662]
[1719832688589,0.03203242,3470.9,3470.7,4.352912]
[1719832688949,2.2963,3471.2,3470.7,4.352912]
[1719832689150,2.2963,3471.2,3470.9,0.814]
[1719832689388,2.2963,3471.2,3470.9,3.69508]
[1719832689389,0.03209681,3471.1,3470.9,3.69508]
[1719832689900,0.03209681,3471.1,3471.0,2.88101]
[1719832690389,2.3721,3471.5,3471.1,2.88092]
[1719832690546,2.3721,3471.5,3471.2,0.814]
[1719832690746,0.03217581,3471.4,3471.2,1.4716]
[1719832692802,0.03217581,3471.4,3471.2,4.41004399]
[1719832693094,2.87978,3472.5,3471.4,2.88062]
[1719832693095,2.4487,3471.8,3471.4,2.88062]
[1719832693302,0.03215915,3471.7,3471.5,3.69457]
[1719832693465,2.4487,3471.8,3471.5,3.69457]
[1719832693682,0.03098319,3471.7,3471.5,3.69457]
[1719832693870,2.4487,3471.8,3471.5,3.69457]
[1719832694213,0.03098319,3471.7,3471.5,3.69457]
[1719832694493,2.4487,3471.8,3471.5,3.69457]
[1719832694699,0.03098319,3471.7,3471.5,3.69457]
[1719832694850,2.4487,3471.8,3471.5,3.69457]
[1719832695053,0.03098319,3471.7,3471.5,3.69457]
[1719832695371,2.4487,3471.8,3471.5,3.69457]
[1719832695562,2.2703,3472.0,3471.7,0.814]
[1719832695973,2.2703,3472.0,3471.6,2.8805]
[1719832697411,2.2703,3472.0,3471.7,3.69442]
[1719832697672,2.2703,3472.0,3471.3,2.88074]
[1719832697813,0.02077972,3471.9,3471.4,2.88067]
[1719832699067,0.02077972,3471.9,3471.4,5.76134]
[1719832699363,0.02077972,3471.9,3471.5,2.88058]
[1719832700526,0.02077972,3471.9,3471.5,3.69458]
[1719832701361,2.2703,3472.0,3471.7,0.814]
[1719832701565,2.2703,3472.0,3471.7,3.6944]
[1719832701769,2.2703,3472.0,3471.8,2.88033]
[1719832701932,2.419,3472.4,3471.8,2.88033]
[1719832703566,2.419,3472.4,3471.9,2.8802]
[1719832704344,2.419,3472.4,3472.0,2.88018]
[1719832704952,0.03148203,3472.3,3472.0,2.88018]
[1719832705954,0.03148203,3472.3,3472.2,0.814]
[1719832706325,0.03148203,3472.3,3472.2,3.69401]
[1719832706551,2.3773,3472.6,3472.3,2.87987]
[1719832706760,2.3773,3472.6,3472.4,2.87984]
[1719832707632,0.03161993,3472.5,3472.4,2.87984]
[1719832711482,0.03161993,3472.5,3472.2,2.88001]
[1719832711840,0.03161993,3472.5,3472.3,2.87993]
[1719832712630,0.03161993,3472.5,3472.1,3.69405]
[1719832713280,0.03161993,3472.5,3472.2,2.88001]
[1719832713485,0.03161993,3472.5,3472.3,2.87989]
[1719832716421,0.03161993,3472.5,3472.1,3.69406]
[1719832717741,0.05239965,3472.5,3472.0,0.657449]
[1719832717980,0.05239965,3472.5,3472.0,0.814]
[1719832718517,2.2933,3472.4,3471.8,4.79854963]
[1719832718645,0.05237217,3472.3,3471.8,3.98454963]
[1719832719004,2.2933,3472.2,3471.8,3.98454963]
[1719832719350,0.03153743,3472.1,3471.8,3.98454963]
[1719832721056,0.05231715,3472.1,3471.8,3.98454963]
[1719832721404,2.2776,3472.0,3471.8,3.98454963]
[1719832721693,0.05226434,3471.9,3471.8,3.98454963]
[1719832722611,0.05226434,3471.9,3471.4,0.814]
[1719832722842,0.05226434,3471.9,3471.4,3.62446996]
[1719832722996,0.02077972,3471.9,3471.4,3.62446996]
[1719832723203,0.03141475,3471.8,3471.4,3.62446996]
[1719832723371,0.03141475,3471.8,3471.4,0.814]
[1719832726888,0.03141475,3471.8,3471.3,3.69472]
[1719832731320,0.03141475,3471.8,3471.3,0.814]
[1719832731489,2.4284,3471.7,3471.3,0.814]
[1719832731691,0.0313139,3471.6,3471.3,0.814]
[1719832731891,0.0313139,3471.6,3471.4,0.76794196]
[1719832736792,0.0313139,3471.6,3471.1,3.98454963]
[1719832737025,0.0313139,3471.6,3471.2,0.814]
[1719832737208,0.0313139,3471.6,3471.3,2.88073]
[1719832738016,2.4284,3471.7,3471.3,2.88073]
[1719832738423,0.03126013,3471.6,3471.3,2.88073]
[1719832738738,2.4284,3471.7,3471.4,2.88068]
[1719832738950,0.03126013,3471.6,3471.4,2.88068]
[1719832740229,0.03126013,3471.6,3471.5,2.88059]
[1719832740744,2.4284,3471.7,3471.5,2.88059]
[1719832741813,2.3474,3472.2,3471.5,2.88059]
[1719832742135,0.05224719,3472.1,3471.5,2.88059]
[1719832743511,2.4457,3472.0,3471.5,2.88059]
[1719832743736,0.05214879,3471.9,3471.5,2.88059]
[1719832747649,0.05214879,3471.9,3471.6,2.88049]
[1719832748528,0.03136907,3471.9,3471.6,2.88049]
[1719832751243,0.05214879,3471.9,3471.6,2.88049]
[1719832760456,0.05214879,3471.9,3471.4,2.88068]
[1719832760666,2.4247,3471.8,3471.2,2.88081]
[1719832760861,0.02077972,3471.7,3471.2,2.88081]
[1719832762079,0.03129241,3471.6,3471.2,2.88081]
[1719832762576,0.02077972,3471.7,3471.2,2.88081]
[1719832762782,0.03129241,3471.6,3471.2,2.88081]
[1719832762964,0.02077972,3471.7,3471.1,6.86546963]
[1719832763279,0.03129241,3471.6,3471.1,6.86546963]
[1719832763655,0.814,3471.6,3471.1,3.98454963]
[1719832763847,2.41697972,3471.5,3471.1,3.98454963]
[1719832764049,2.41697972,3471.5,3470.7,2.88125]
[1719832764248,0.031139,3471.4,3470.7,2.88125]
[1719832764548,0.02077972,3471.3,3470.7,2.88125]
[1719832764776,0.03104047,3471.2,3470.7,2.88125]
[1719832764973,0.02077972,3471.3,3470.7,2.88125]
[1719832764974,0.02077972,3471.3,3470.7,4.17093096]
[1719832765170,0.03102148,3471.2,3470.7,4.17093096]
[1719832765382,0.02077972,3471.3,3470.7,4.17093096]
[1719832765604,2.3962,3471.5,3470.7,4.17093096]
[1719832766084,1.06167721,3471.6,3470.6,10.01555963]
[1719832766085,3.0824,3471.4,3470.6,3.98454963]
[1719832766386,3.0824,3471.4,3470.6,6.86582963]
[1719832766585,0.02077972,3471.3,3470.6,7.67982963]
[1719832767285,0.02077972,3471.3,3470.7,2.88124]
[1719832767594,0.03075558,3471.2,3470.8,1.87012096]
[1719832768010,0.02077972,3471.3,3470.8,1.87012096]
[1719832768217,0.03070467,3471.1,3470.8,1.87012096]
[1719832768391,0.03075558,3471.2,3470.8,1.87012096]
[1719832768702,0.02077972,3471.3,3470.8,1.87012096]
[1719832769018,0.03075558,3471.2,3470.8,1.87012096]
[1719832769492,0.02077972,3471.3,3470.8,1.87012096]
[1719832769707,0.03070467,3471.1,3470.8,1.87012096]
[1719832769885,0.03075558,3471.2,3470.8,1.87012096]
[1719832770206,0.02077972,3471.3,3470.8,1.87012096]
[1719832770372,0.03064841,3471.1,3470.8,1.87012096]
[1719832770575,0.02077972,3471.3,3470.8,1.87012096]
[1719832770772,0.03069932,3471.2,3470.8,1.87012096]
[1719832771075,0.02077972,3471.3,3470.8,1.87012096]
[1719832771394,0.03067119,3471.2,3470.8,1.87012096]
[1719832771574,0.02077972,3471.3,3470.8,1.87012096]
[1719832771775,0.02077972,3471.3,3470.8,4.75129096]
[1719832771776,0.03067119,3471.2,3470.8,4.75129096]
[1719832772079,0.02077972,3471.3,3470.8,4.75129096]
[1719832772282,0.03062028,3471.1,3470.8,4.75129096]
[1719832772483,0.03067119,3471.2,3470.8,1.87012096]